bitfinex-derivatives/quotes_SOLF0:USTF0_20250623
["timestamp","ask_amount","ask_price","bid_price","bid_amount"]
[1750691314506,39.38,135.23,135.17,8.02278396]
[1750691314902,39.38,135.23,135.17,15.41728396]
[1750691315511,39.38,135.23,135.17,54.79728396]
[1750691315712,7.3932,135.2,135.18,7.3942]
[1750691315911,39.38,135.23,135.17,39.38]
[1750691316111,238.65571457,135.25,135.19,8.02278396]
[1750691316714,230.63293061,135.25,135.21,8.02278396]
[1750691317011,7.3917,135.23,135.21,8.02278396]
[1750691317914,7.3917,135.23,135.2,7.3926]
[1750691318112,7.3917,135.23,135.21,8.02278396]
[1750691319006,8.02278396,135.27,135.21,47.38278396]
[1750691319207,39.36,135.28,135.21,47.38278396]
[1750691319511,7.391,135.24,135.21,47.38278396]
[1750691319813,8.02278396,135.27,135.21,47.38278396]
[1750691320018,8.02278396,135.27,135.21,39.36]
[1750691320614,7.3917,135.23,135.21,39.36]
[1750691321715,7.392,135.22,135.21,39.36]
[1750691322416,7.3931,135.2,135.19,8.02278396]
[1750691322615,8.02278396,135.25,135.19,8.02278396]
[1750691323012,7.3931,135.2,135.19,8.02278396]
[1750691323616,7.3926,135.21,135.19,15.41628396]
[1750691324016,8.02278396,135.25,135.19,8.02278396]
[1750691324215,2.3736,135.27,135.2,7.3931]
[1750691324421,8.02278396,135.27,135.21,8.02278396]
[1750691324614,47.38278396,135.28,135.21,8.02278396]
[1750691324819,7.3912,135.24,135.21,15.41498396]
[1750691326412,7.3915,135.23,135.21,8.02278396]
[1750691326616,8.02278396,135.29,135.21,8.02278396]
[1750691326816,7.3912,135.24,135.21,15.41528396]
[1750691327713,7.3912,135.24,135.22,7.3919]
[1750691327922,7.3912,135.24,135.21,8.02278396]
[1750691328620,7.3907,135.25,135.21,8.02278396]
[1750691328822,7.3907,135.25,135.22,39.36]
[1750691329124,7.3907,135.25,135.22,46.7519]
[1750691329427,54.1342,135.31,135.23,8.02278396]
[1750691329632,54.1342,135.31,135.25,8.02278396]
[1750691329633,47.38278396,135.31,135.25,8.02278396]
[1750691329927,39.36,135.31,135.27,8.02278396]
[1750691330127,8.02278396,135.33,135.27,8.02278396]
[1750691330524,266.5036435,135.34,135.29,8.02278396]
[1750691330727,0.2915,135.37,135.29,8.02278396]
[1750691330728,39.36,135.37,135.29,8.02278396]
[1750691330922,7.3868,135.32,135.29,8.02278396]
[1750691331124,39.36,135.37,135.29,8.02278396]
[1750691331332,8.02278396,135.36,135.29,8.02278396]
[1750691331629,39.36,135.37,135.25,7.1378]
[1750691331630,7.3855,135.34,135.31,15.40958396]
[1750691332323,39.36,135.37,135.33,8.02278396]
[1750691332531,39.34,135.43,135.35,8.02278396]
[1750691332719,8.02278396,135.42,135.35,47.36278396]
[1750691332925,7.3825,135.4,135.36,7.3839]
[1750691333123,2.3714,135.45,135.39,8.02278396]
[1750691333321,41.1349,135.46,135.39,8.02278396]
[1750691333529,39.34,135.46,135.41,8.02278396]
[1750691333825,8.02278396,135.43,135.32,2.3687]
[1750691334028,39.34,135.42,135.34,8.02278396]
[1750691334427,8.02278396,135.39,135.33,47.36278396]
[1750691334825,7.3853,135.35,135.33,39.34]
[1750691335028,8.02278396,135.39,135.33,39.34]
[1750691336028,39.28,135.38,135.32,10.39148396]
[1750691336326,39.28,135.38,135.31,4.8275]
[1750691336327,8.02278396,135.37,135.31,12.85028396]
[1750691336538,8.02278396,135.35,135.31,2.3694]
[1750691336729,8.02278396,135.35,135.3,39.28]
[1750691337330,7.3876,135.31,135.29,2.4465]
[1750691337926,7.3876,135.3,135.29,2.4465]
[1750691338229,7.3876,135.3,135.28,154.98278396]
[1750691338429,8.02278396,135.35,135.28,154.98278396]
[1750691338630,7.3874,135.31,135.28,162.37148396]
[1750691338831,7.3874,135.31,135.28,154.98278396]
[1750691339029,7.3879,135.3,135.28,154.98278396]
[1750691340228,7.3879,135.3,135.28,146.96]
[1750691340428,7.3882,135.29,135.27,39.28]
[1750691340832,7.3887,135.28,135.27,39.28]
[1750691341329,39.28,135.34,135.25,2.4465]
[1750691341330,8.02278396,135.31,135.25,2.4465]
[1750691341721,39.28,135.3,135.24,39.28]
[1750691341928,8.02278396,135.29,135.24,39.28]
[1750691342234,39.28,135.3,135.24,47.30278396]
[1750691342630,47.30278396,135.3,135.24,47.30278396]
[1750691342828,7.3901,135.26,135.24,47.30278396]
[1750691343031,47.30278396,135.3,135.24,47.30278396]
[1750691343336,7.3915,135.23,135.22,2.359]
[1750691343636,8.02278396,135.28,135.22,2.359]
[1750691343829,8.02278396,135.28,135.21,10.52558396]
[1750691344431,7.3916,135.23,135.21,10.52558396]
[1750691344733,8.02278396,135.26,135.2,39.28]
[1750691344937,7.3918,135.23,135.2,47.30278396]
[1750691345138,8.02278396,135.26,135.2,47.30278396]
[1750691345543,8.02278396,135.26,135.2,54.69528396]
[1750691345837,8.02278396,135.26,135.2,39.28]
[1750691346139,7.3919,135.23,135.2,47.30278396]
[1750691346342,8.02278396,135.26,135.2,47.30278396]
[1750691346740,7.3919,135.23,135.2,47.30278396]
[1750691346948,47.30278396,135.26,135.2,47.30278396]
[1750691347238,39.28,135.26,135.2,47.30278396]
[1750691347539,39.28,135.26,135.2,54.69558396]
[1750691347838,39.28,135.26,135.2,47.30278396]
[1750691348240,39.28,135.29,135.24,8.02278396]
[1750691349036,7.3901,135.26,135.24,8.02278396]
[1750691349534,7.3893,135.28,135.24,15.41358396]
[1750691349739,8.02278396,135.3,135.24,8.02278396]
[1750691350439,7.3899,135.26,135.24,8.02278396]
[1750691351137,7.3894,135.27,135.24,8.02278396]
[1750691351441,8.02278396,135.3,135.24,8.02278396]
[1750691351942,8.02278396,135.3,135.23,8.02278396]
[1750691352139,8.02278396,135.3,135.25,8.02278396]
[1750691352731,39.28,135.31,135.25,8.02278396]
[1750691353837,8.02278396,135.3,135.23,8.02278396]
[1750691354344,7.3909,135.24,135.23,8.02278396]
[1750691354544,8.02278396,135.28,135.2,39.28]
[1750691357343,47.30278396,135.25,135.17,54.69718396]
[1750691357734,7.3936,135.2,135.17,54.69718396]
[1750691358248,7.3936,135.2,135.18,7.3941]
[1750691358544,47.30278396,135.25,135.17,47.30278396]
[1750691358743,47.30278396,135.25,135.18,7.394]
[1750691358948,7.3929,135.21,135.18,7.394]
[1750691359146,7.3929,135.21,135.17,47.30278396]
[1750691359338,47.30278396,135.25,135.17,54.69728396]
[1750691359647,39.28,135.25,135.17,47.30278396]
[1750691359844,8.02278396,135.24,135.17,47.30278396]
[1750691360043,8.02278396,135.24,135.17,8.02278396]
[1750691360242,8.02278396,135.2,135.13,12.2671]
[1750691360439,8.02278396,135.16,135.11,39.28]
[1750691360641,8.02278396,135.16,135.07,638.42]
[1750691360642,7.3975,135.12,135.08,4.8408]
[1750691360848,8.02278396,135.16,135.09,8.02278396]
[1750691361048,8.02278396,135.14,135.09,8.02278396]
[1750691361346,47.32278396,135.14,135.08,44.1208]
[1750691361546,39.3,135.14,135.08,44.1208]
[1750691361741,47.32278396,135.14,135.08,51.5199]
[1750691361942,47.32278396,135.14,135.08,44.1208]
[1750691362350,39.3,135.14,135.09,7.3991]
[1750691362545,39.3,135.14,135.08,56.33903948]
[1750691362741,51.51823948,135.2,135.12,12.21823948]
[1750691362936,39.3,135.2,135.14,19.61423948]
[1750691363141,39.3,135.2,135.14,58.91423948]
[1750691363348,39.3,135.2,135.14,58.91413948]
[1750691363542,39.3,135.2,135.14,51.51823948]
[1750691363949,7.3946,135.18,135.14,51.51823948]
[1750691364345,7.3951,135.17,135.14,51.51823948]
[1750691364646,39.3,135.2,135.14,51.51823948]
[1750691364851,39.3,135.2,135.14,58.91433948]
[1750691365044,39.3,135.2,135.14,51.51823948]
[1750691365249,39.3,135.2,135.16,12.21823948]
[1750691365449,39.4,135.23,135.16,19.61323948]
[1750691365642,39.4,135.23,135.16,12.21823948]
[1750691365847,7.3929,135.21,135.18,12.21823948]
[1750691366143,39.4,135.26,135.2,12.21823948]
[1750691366549,7.3918,135.23,135.2,12.21823948]
[1750691367447,7.3918,135.23,135.2,19.61123948]
[1750691368656,51.61823948,135.26,135.18,51.61823948]
[1750691368949,51.61823948,135.26,135.15,4.8756]
[1750691368950,39.4,135.26,135.15,56.49383948]
[1750691369154,12.21823948,135.23,135.15,56.49383948]
[1750691369953,7.3939,135.19,135.16,7.395]
[1750691370352,7.3934,135.2,135.17,7.3946]
[1750691370552,7.3934,135.2,135.15,56.49383948]
[1750691370753,12.21823948,135.23,135.15,56.49383948]
[1750691370960,7.3942,135.19,135.16,7.395]
[1750691371360,7.3942,135.18,135.15,63.88943948]
[1750691371754,39.4,135.22,135.15,56.49383948]
[1750691371958,7.3945,135.18,135.15,56.49383948]
[1750691372361,39.4,135.22,135.17,12.21823948]
[1750691373158,7.3928,135.21,135.17,12.21823948]
[1750691373665,7.3932,135.2,135.17,12.21823948]
[1750691374157,39.4,135.22,135.17,12.21823948]
[1750691374355,7.3938,135.19,135.17,12.21823948]
[1750691375857,39.4,135.22,135.17,12.21823948]
[1750691375858,39.4,135.22,135.17,19.61293948]
[1750691376161,39.4,135.22,135.17,12.21823948]
[1750691376460,7.3937,135.19,135.17,12.21823948]
[1750691376855,39.4,135.22,135.17,12.21823948]
[1750691377060,7.3935,135.2,135.17,19.61293948]
[1750691377254,39.4,135.22,135.15,4.8756]
[1750691377456,39.4,135.22,135.15,56.49383948]
[1750691378763,7.3948,135.17,135.15,63.88963948]
[1750691378959,39.4,135.22,135.15,63.88963948]
[1750691379959,7.3945,135.18,135.15,63.88963948]
[1750691382161,7.3949,135.17,135.15,63.88963948]
[1750691382463,7.3949,135.17,135.15,56.49383948]
[1750691382860,7.3944,135.18,135.15,63.88963948]
[1750691383055,39.4,135.22,135.15,56.49383948]
[1750691383866,7.3945,135.18,135.15,63.88953948]
[1750691384057,7.3945,135.18,135.15,56.49383948]
[1750691384458,7.3945,135.18,135.15,63.88933948]
[1750691385064,7.3939,135.19,135.16,7.3952]
[1750691385265,51.61823948,135.25,135.17,12.21823948]
[1750691385759,7.3928,135.21,135.18,7.3939]
[1750691386469,7.3923,135.22,135.19,19.61173948]
[1750691386660,39.4,135.25,135.19,51.61823948]
[1750691387968,39.4,135.25,135.2,7.393]
[1750691388170,39.4,135.25,135.19,51.61823948]
[1750691388767,7.3917,135.23,135.19,51.61823948]
[1750691390271,51.61823948,135.28,135.21,12.21823948]
[1750691390466,39.4,135.28,135.21,12.21823948]
[1750691390664,7.3912,135.24,135.21,19.61043948]
[1750691391167,39.4,135.28,135.19,39.4]
[1750691391471,39.4,135.28,135.2,12.21823948]
[1750691391472,51.61823948,135.28,135.2,12.21823948]
[1750691391658,39.4,135.28,135.22,12.21823948]
[1750691391863,39.4,135.28,135.22,19.61003948]
[1750691392064,39.4,135.28,135.22,12.21823948]
[1750691392268,7.3911,135.24,135.22,8.00186663]
[1750691392972,39.4,135.28,135.22,8.00186663]
[1750691394069,7.392,135.22,135.2,8.00186663]
[1750691394272,8.00186663,135.25,135.19,39.4]
[1750691394572,54.1777,135.28,135.18,49.88026663]
[1750691394866,8.00186663,135.27,135.2,8.00186663]
[1750691395072,7.3921,135.22,135.2,8.00186663]
[1750691395262,8.00186663,135.26,135.2,8.00186663]
[1750691395667,7.3918,135.23,135.2,15.39496663]
[1750691395870,8.00186663,135.26,135.2,8.00186663]
[1750691396073,8.00186663,135.26,135.19,8.00186663]
[1750691396771,8.00186663,135.26,135.19,15.39526663]
[1750691396971,8.00186663,135.26,135.19,8.00186663]
[1750691397668,7.3923,135.22,135.19,15.39506663]
[1750691397879,8.00186663,135.26,135.19,15.39506663]
[1750691398566,7.3924,135.22,135.19,15.39506663]
[1750691398762,7.3924,135.22,135.2,7.3928]
[1750691399975,47.40186663,135.28,135.21,8.00186663]
[1750691400563,7.3911,135.24,135.21,15.39416663]
[1750691401172,7.3907,135.25,135.22,7.392]
[1750691401470,47.40186663,135.28,135.23,8.00186663]
[1750691401471,39.4,135.28,135.23,8.00186663]
[1750691402270,8.00186663,135.3,135.23,8.00186663]
[1750691402470,39.28,135.31,135.25,8.00186663]
[1750691402681,10.37386663,135.33,135.27,8.00186663]
[1750691402877,13.22287719,135.33,135.25,8.00186663]
[1750691403072,13.2224487,135.33,135.25,8.00186663]
[1750691403473,7.3884,135.29,135.26,7.3897]
[1750691403672,2.372,135.33,135.26,8.00186663]
[1750691403876,8.00186663,135.31,135.26,8.00186663]
[1750691404073,7.3893,135.27,135.24,15.39246663]
[1750691404868,7.3893,135.27,135.25,7.3903]
[1750691405071,7.389,135.28,135.26,8.00186663]
[1750691405273,8.00186663,135.31,135.24,8.00186663]
[1750691405580,8.00186663,135.29,135.24,8.00186663]
[1750691406474,7.3913,135.24,135.22,47.28186663]
[1750691406877,8.00186663,135.29,135.22,47.28186663]
[1750691407582,7.3914,135.23,135.22,47.28186663]
[1750691408283,7.3914,135.23,135.21,4.7769]
[1750691408484,7.3914,135.23,135.21,20.17116663]
[1750691408980,7.3912,135.24,135.21,20.17116663]
[1750691409182,8.00186663,135.28,135.21,12.77876663]
[1750691409383,7.3915,135.23,135.21,12.77876663]
[1750691411483,8.00186663,135.26,135.19,49.64686663]
[1750691411678,47.28186663,135.26,135.19,49.64686663]
[1750691411984,7.3923,135.22,135.19,57.04016663]
[1750691412177,7.3923,135.22,135.21,8.00186663]
[1750691412377,7.3918,135.23,135.21,8.00186663]
[1750691412680,47.28186663,135.26,135.19,49.64686663]
[1750691413075,8.00186663,135.24,135.19,39.28]
[1750691413276,8.00186663,135.22,135.19,39.28]
[1750691413678,7.3936,135.2,135.17,12.2221]
[1750691414179,7.3927,135.21,135.18,15.39556663]
[1750691414579,7.3931,135.2,135.18,15.39556663]
[1750691414780,8.00186663,135.24,135.18,15.39556663]
[1750691415079,7.3926,135.21,135.18,8.00186663]
[1750691415475,7.3926,135.21,135.18,15.39576663]
[1750691416082,39.28,135.26,135.2,15.39466663]
[1750691416280,39.28,135.26,135.2,8.00186663]
[1750691416476,7.3922,135.22,135.2,8.00186663]
[1750691416877,8.00186663,135.25,135.18,2.3158]
[1750691417275,39.28,135.26,135.18,2.3158]
[1750691417478,7.3921,135.22,135.19,8.00186663]
[1750691417683,47.28186663,135.26,135.19,8.00186663]
[1750691417880,47.28186663,135.26,135.2,7.3928]
[1750691418082,7.3917,135.23,135.2,7.3928]
[1750691418281,47.28186663,135.26,135.21,7.3925]
[1750691418483,39.28,135.26,135.21,15.39436663]
[1750691418785,7.3912,135.24,135.21,15.39436663]
[1750691418980,8.00186663,135.28,135.21,8.00186663]
[1750691419189,7.3902,135.26,135.23,8.00186663]
[1750691419379,7.3902,135.26,135.23,15.39326663]
[1750691420087,7.3904,135.25,135.23,15.39326663]
[1750691420280,7.3904,135.25,135.23,8.00186663]
[1750691420985,7.3911,135.24,135.23,8.00186663]
[1750691421180,8.00186663,135.28,135.21,8.00186663]
[1750691421683,7.3914,135.24,135.21,8.00186663]
[1750691421981,8.00186663,135.28,135.21,8.00186663]
[1750691422684,8.00186663,135.28,135.21,15.39456663]
[1750691422984,8.00186663,135.28,135.21,8.00186663]
[1750691423188,7.3909,135.25,135.22,7.3919]
[1750691425887,39.28,135.29,135.23,8.00186663]
[1750691426588,7.3895,135.27,135.23,15.39276663]
[1750691426891,7.3895,135.27,135.23,8.00186663]
[1750691427093,7.3895,135.27,135.24,7.3906]
[1750691427292,39.28,135.29,135.25,8.00186663]
[1750691427484,47.26186663,135.32,135.25,8.00186663]
[1750691428088,47.26186663,135.32,135.25,15.39196663]
[1750691428390,39.26,135.32,135.25,15.39196663]
[1750691428588,50.11240608,135.32,135.25,15.39196663]
[1750691428791,7.3888,135.28,135.25,15.39196663]
[1750691428985,47.26186663,135.32,135.25,15.39196663]
[1750691429385,47.26186663,135.32,135.26,7.3895]
[1750691429685,7.3884,135.29,135.26,7.3895]
[1750691429891,47.26186663,135.32,135.26,7.3895]
[1750691430290,7.3887,135.29,135.26,7.3895]
[1750691430687,47.26186663,135.32,135.26,7.3895]
[1750691430887,7.3883,135.3,135.26,7.3895]
[1750691431492,47.26186663,135.32,135.26,7.3895]
[1750691431695,21.54532927,135.35,135.29,8.00186663]
[1750691431696,8.00186663,135.35,135.29,8.00186663]
[1750691431893,2.85255263,135.35,135.29,47.26186663]
[1750691432194,39.26,135.36,135.31,15.38886663]
[1750691432195,44.63679667,135.36,135.31,15.38886663]
[1750691432390,232.29117836,135.37,135.33,8.00186663]
[1750691432706,47.26186663,135.4,135.33,47.26186663]
[1750691433492,7.3845,135.36,135.33,47.26186663]
[1750691434196,7.3845,135.36,135.33,54.64796663]
[1750691434896,7.3853,135.35,135.33,47.26186663]
[1750691435098,47.26186663,135.4,135.33,47.26186663]
[1750691435297,39.26,135.4,135.35,8.00186663]
[1750691435501,7.3834,135.39,135.35,15.38656663]
[1750691435791,47.24186663,135.43,135.37,8.00186663]
[1750691435999,7.3827,135.4,135.37,15.38546663]
[1750691436397,39.24,135.43,135.37,8.00186663]
[1750691436600,7.3821,135.41,135.38,7.3831]
[1750691436803,39.24,135.43,135.33,39.26]
[1750691437000,39.24,135.43,135.37,8.00186663]
[1750691437195,7.3821,135.41,135.39,8.00186663]
[1750691437597,39.24,135.43,135.39,8.00186663]
[1750691438103,7.3824,135.4,135.39,8.00186663]
[1750691438297,39.24,135.43,135.37,39.24]
[1750691438494,7.3831,135.39,135.37,39.24]
[1750691438797,51.40603951,135.43,135.34,12.16603951]
[1750691438996,7.3852,135.35,135.33,51.40603951]
[1750691439204,12.16603951,135.41,135.33,51.40603951]
[1750691440698,39.24,135.43,135.35,12.16603951]
[1750691440900,39.24,135.43,135.37,19.55003951]
[1750691441092,39.24,135.43,135.37,12.16603951]
[1750691441399,39.24,135.43,135.39,19.54863951]
[1750691441400,7.3816,135.42,135.39,19.54863951]
[1750691441589,638.42,135.45,135.38,2.4688]
[1750691441791,638.42,135.45,135.38,14.63483951]
[1750691442195,7.3819,135.41,135.38,22.01793951]
[1750691442403,650.58603951,135.45,135.38,14.63483951]
[1750691442795,7.3823,135.41,135.38,14.63483951]
[1750691443195,650.58603951,135.45,135.38,14.63483951]
[1750691443397,7.3824,135.41,135.38,14.63483951]
[1750691443799,7.3824,135.41,135.38,22.01823951]
[1750691444103,650.58603951,135.45,135.38,14.63483951]
[1750691444299,650.58603951,135.45,135.37,39.24]
[1750691444604,7.3827,135.4,135.37,39.24]
[1750691444904,7.3827,135.4,135.37,46.6239]
[1750691445901,7.3829,135.39,135.37,39.24]
[1750691446103,650.58603951,135.45,135.37,39.24]
[1750691446593,7.3835,135.38,135.37,39.24]
[1750691446795,650.58603951,135.45,135.37,39.24]
[1750691447197,7.3835,135.38,135.37,39.24]
[1750691447393,12.16603951,135.41,135.33,2.5045]
[1750691447604,12.16603951,135.41,135.33,61.27643951]
[1750691448508,7.385,135.36,135.33,61.27643951]
[1750691448800,12.16603951,135.41,135.33,61.27643951]
[1750691449007,7.3843,135.37,135.34,7.3856]
[1750691449195,7.3843,135.37,135.33,53.89053951]
[1750691449599,39.22,135.42,135.35,12.16603951]
[1750691449600,7.3837,135.38,135.35,12.16603951]
[1750691450207,7.3837,135.38,135.35,19.55073951]
[1750691450408,7.384,135.37,135.35,12.16603951]
[1750691450708,39.22,135.42,135.35,19.55083951]
[1750691451208,39.22,135.42,135.36,7.3844]
[1750691451402,39.22,135.42,135.33,41.7245]
[1750691451606,7.3833,135.39,135.36,19.55033951]
[1750691453209,39.22,135.42,135.36,19.55033951]
[1750691453210,7.3836,135.38,135.36,19.55033951]
[1750691453510,7.3836,135.38,135.36,12.16603951]
[1750691454108,7.3831,135.39,135.36,19.55023951]
[1750691454614,7.3826,135.4,135.37,7.3839]
[1750691454912,7.3826,135.4,135.37,46.6039]
[1750691456114,7.3829,135.39,135.37,46.6039]
[1750691456308,7.3829,135.39,135.37,39.22]
[1750691456516,12.16603951,135.44,135.37,39.22]
[1750691456717,7.3829,135.4,135.37,46.6038]
[1750691457602,7.383,135.39,135.37,39.22]
[1750691458411,7.3835,135.38,135.37,39.22]
[1750691459316,7.3841,135.37,135.34,46.6254]
[1750691459816,7.3841,135.37,135.34,39.24]
[1750691460020,7.3846,135.36,135.34,39.24]
[1750691460213,12.16603951,135.4,135.34,46.6254]
[1750691460716,12.16603951,135.4,135.34,39.24]
[1750691460910,12.16603951,135.4,135.33,41.7445]
[1750691462322,7.3848,135.36,135.33,49.1303]
[1750691462817,7.3856,135.35,135.33,39.24]
[1750691463616,7.3856,135.34,135.33,39.24]
[1750691464120,12.16603951,135.34,135.27,39.24]
[1750691464514,39.24,135.36,135.28,12.16603951]
[1750691465223,39.24,135.36,135.29,7.3878]
[1750691465422,39.24,135.36,135.28,12.16603951]
[1750691466012,39.24,135.36,135.3,12.16603951]
[1750691466325,7.3847,135.36,135.33,7.3858]
[1750691468121,7.3851,135.35,135.33,7.3858]
[1750691468423,7.3851,135.35,135.32,19.55253951]
[1750691469322,7.3851,135.35,135.33,7.3861]
[1750691469620,7.3851,135.35,135.32,12.16603951]
[1750691469621,7.3848,135.36,135.32,12.16603951]
[1750691470017,7.3848,135.36,135.33,7.3859]
[1750691472620,7.3843,135.37,135.34,12.16603951]
[1750691472822,39.24,135.39,135.34,12.16603951]
[1750691473012,44.72609401,135.42,135.34,12.16603951]
[1750691473321,7.3837,135.38,135.35,7.3848]
[1750691473620,39.26,135.42,135.35,7.3848]
[1750691473822,42.09749966,135.42,135.35,7.3848]
[1750691474023,42.09749966,135.42,135.34,12.16603951]
[1750691474024,42.09749966,135.42,135.36,7.3842]
[1750691474219,42.09749966,135.42,135.34,12.16603951]
[1750691474527,44.73142576,135.42,135.36,7.3841]
[1750691474827,7.3834,135.39,135.36,7.3841]
[1750691475427,7.3835,135.38,135.36,7.3841]
[1750691477129,7.3832,135.39,135.36,7.3841]
[1750691478022,39.26,135.42,135.35,46.6449]
[1750691478217,5.44804231,135.41,135.35,39.26]
[1750691478414,2.84207013,135.41,135.36,7.3844]
[1750691478618,39.26,135.42,135.36,7.3844]
[1750691478829,7.3837,135.38,135.35,39.26]
[1750691479726,39.26,135.42,135.36,7.3843]
[1750691479918,39.26,135.42,135.35,39.26]
[1750691480229,39.26,135.42,135.36,7.3843]
[1750691481629,47.55557303,135.42,135.36,7.3843]
[1750691481832,7.3832,135.39,135.36,7.3843]
[1750691482324,7.3832,135.39,135.36,15.3701366]
[1750691482730,47.55657944,135.42,135.36,15.3701366]
[1750691483127,42.10251779,135.42,135.36,15.3701366]
[1750691483832,7.3833,135.39,135.36,15.3701366]
[1750691484527,7.3836,135.38,135.36,15.3701366]
[1750691484731,42.10186511,135.42,135.36,15.3701366]
[1750691485028,39.26,135.42,135.36,7.9858366]
[1750691485236,22.09640486,135.41,135.35,47.2458366]
[1750691485430,10.82749794,135.41,135.35,47.2458366]
[1750691485634,7.3837,135.38,135.35,47.2458366]
[1750691486135,7.384,135.37,135.35,47.2458366]
[1750691487225,7.3838,135.38,135.35,54.6306366]
[1750691487434,13.43790037,135.41,135.35,46.6448]
[1750691487637,7.3846,135.36,135.35,39.26]
[1750691487840,7.9858366,135.39,135.32,2.3309]
[1750691488136,13.43936545,135.39,135.32,2.3309]
[1750691488337,7.9858366,135.39,135.32,2.3309]
[1750691488639,7.9858366,135.37,135.31,47.1858366]
[1750691489032,7.9858366,135.37,135.31,39.2]
[1750691489235,16.28049298,135.37,135.3,2.5053]
[1750691489425,13.43932804,135.37,135.3,2.5053]
[1750691490035,7.3871,135.32,135.3,9.8929]
[1750691490435,7.9858366,135.35,135.29,7.9858366]
[1750691490934,7.9858366,135.35,135.28,49.6105366]
[1750691491129,7.9858366,135.35,135.29,7.3883]
[1750691492032,7.3872,135.32,135.28,49.6105366]
[1750691492228,8.28862032,135.37,135.3,7.9858366]
[1750691492429,16.64017813,135.37,135.31,7.3871]
[1750691492634,10.8264713,135.37,135.31,7.3871]
[1750691492838,7.9858366,135.37,135.31,7.3871]
[1750691493037,7.3862,135.34,135.31,7.3871]
[1750691493239,7.9858366,135.37,135.3,7.9858366]
[1750691493441,7.9858366,135.37,135.32,7.9858366]
[1750691493939,39.2,135.38,135.32,15.3723366]
[1750691494142,47.1858366,135.38,135.32,15.3723366]
[1750691494338,7.3855,135.35,135.32,15.3723366]
[1750691494539,47.1858366,135.38,135.32,15.3723366]
[1750691494934,7.3857,135.34,135.32,15.3723366]
[1750691495538,7.3857,135.34,135.32,7.9858366]
[1750691496038,7.3862,135.33,135.3,7.9858366]
[1750691496228,7.9858366,135.36,135.29,7.9858366]
[1750691496434,7.3871,135.32,135.29,7.9858366]
[1750691496834,7.3871,135.32,135.29,15.3737366]
[1750691497034,7.3873,135.31,135.29,15.3737366]
[1750691497646,7.3878,135.3,135.28,46.5888]
[1750691497840,7.3878,135.3,135.27,7.9858366]
[1750691497841,47.1858366,135.34,135.27,7.9858366]
[1750691498144,47.1858366,135.34,135.27,15.3753366]
[1750691498145,7.9858366,135.32,135.27,15.3753366]
[1750691498731,39.2,135.34,135.27,7.9858366]
[1750691499237,7.3876,135.31,135.28,15.3744366]
[1750691499439,47.1858366,135.37,135.3,7.9858366]
[1750691499840,47.1858366,135.37,135.3,15.3733366]
[1750691500249,47.1858366,135.37,135.3,7.9858366]
[1750691500545,39.2,135.37,135.32,7.9858366]
[1750691501244,7.3854,135.35,135.32,15.3720366]
[1750691501444,7.3854,135.35,135.32,7.9858366]
[1750691501845,39.2,135.37,135.32,7.9858366]
[1750691502238,39.2,135.37,135.31,22.00710755]
[1750691502945,7.3861,135.34,135.31,22.00710755]
[1750691503349,7.3863,135.33,135.31,9.8295]
[1750691503542,51.37760755,135.37,135.29,39.2]
[1750691503848,12.17760755,135.35,135.29,39.2]
[1750691504144,7.3877,135.31,135.29,7.3883]
[1750691504351,12.17760755,135.35,135.27,51.37760755]
[1750691504847,12.17760755,135.35,135.28,7.3888]
[1750691505554,7.3881,135.3,135.28,7.3888]
[1750691506641,7.3884,135.29,135.27,58.76690755]
[1750691508352,7.3889,135.28,135.27,51.37760755]
[1750691508938,39.2,135.33,135.24,62.0]
[1750691508939,7.3895,135.27,135.25,19.56790755]
[1750691509148,7.3895,135.27,135.25,7.3903]
[1750691509452,7.3893,135.28,135.24,39.2]
[1750691509844,51.37760755,135.33,135.24,39.2]
[1750691510651,7.3896,135.27,135.25,7.3902]
[1750691511653,7.3896,135.27,135.24,39.2]
[1750691511654,51.37760755,135.33,135.24,58.76840755]
[1750691511849,51.37760755,135.33,135.24,51.37760755]
[1750691512548,7.3896,135.27,135.25,7.3903]